fUSD/lending_fUSD_20251117
["ID","MTS","AMOUNT","RATE_DAILY","PERIOD"]
[394198931,1763371866814,-500.0,0.00034237,7]
[394198932,1763371866824,-1961.62,0.00034246,2]
[394198933,1763371866834,-512.12429062,0.00034246,2]
[394198934,1763371866843,-944.86,0.00034319,30]
[394198935,1763371866854,-162.0,0.0003432,2]
[394198936,1763371866863,-951.79,0.00034377,2]
[394198937,1763371866874,-1100.44,0.00034377,2]
[394198938,1763371866886,-693.34,0.000344,30]
[394198939,1763371866897,-12395.0,0.00034463,7]
[394198940,1763371866907,-162.8674096,0.00034468,2]
[394198941,1763371866917,-1709.366103,0.0003449,2]
[394198942,1763371866928,-4802.18,0.000345,2]
[394198943,1763371866941,-1961.62,0.0003452,2]
[394198944,1763371866954,-600.0,0.00034521,2]
[394198945,1763371866965,-1961.62,0.00034794,2]
[394198946,1763371866976,-740.92910877,0.00034821,60]
[394198947,1763371866988,-150.0,0.00034877,2]
[394198948,1763371866997,-150.0,0.00034877,2]
[394198949,1763371867006,-212.0,0.0003488,30]
[394198950,1763371867015,-152.0,0.00034993,5]
[394198951,1763371867024,-845.51,0.00034994,2]
[394198952,1763371867033,-1000.0,0.00035,7]
[394198953,1763371867043,-1010.0,0.00035,7]
[394198954,1763371867052,-402.22771348,0.00035,2]
[394198955,1763371867062,-1222.13064168,0.00035,2]
[394198956,1763371867071,-150.0,0.00035,2]
[394198957,1763371867081,-1230.0,0.00035,16]
[394198958,1763371867090,-1000.0,0.00035,16]
[394198959,1763371867099,-1000.0,0.00035,12]
[394198960,1763371867109,-1252.32003112,0.00035,30]
[394198961,1763371867119,-6027.44,0.00035,15]
[394198962,1763371867129,-1378.45035715,0.00035,120]
[394198963,1763371867139,-340.27483488,0.00035,120]
[394198964,1763371867148,-490.0,0.00035,30]
[394198965,1763371867158,-500.0,0.00035059,7]
[394198966,1763371867169,-500.0,0.00035059,7]
[394198967,1763371867179,-1604.0,0.00035068,2]
[394198968,1763371867188,-705.0,0.00035068,2]
[394198969,1763371867197,-1191.0,0.00035068,2]
[394198970,1763371867207,-907.0,0.00035068,2]
[394198971,1763371867219,-1961.62,0.00035068,2]
[394198972,1763371867229,-600.0,0.00035069,2]
[394198973,1763371867239,-550.1,0.00035199,2]
[394198974,1763371867249,-1961.62,0.00035342,2]
[394198975,1763371867259,-377.49,0.00035445,120]
[394198976,1763371867269,-693.34,0.000356,30]
[394198977,1763371867278,-4802.18,0.000356,2]
[394198978,1763371867287,-1000.0,0.00035616,2]
[394198979,1763371867296,-6000.0,0.00035616,5]
[394198980,1763371867306,-1961.62,0.00035616,2]
[394198981,1763371867316,-196.97882712,0.00035616,5]
[394198982,1763371867325,-407.24,0.00035616,2]
[394198983,1763371867335,-151.0,0.00035616,31]
[394198984,1763371867344,-151.0,0.00035616,31]
[394198985,1763371867354,-151.0,0.00035616,31]
[394198986,1763371867364,-151.0,0.00035616,31]
[394198987,1763371867374,-151.0,0.00035616,31]
[394198988,1763371867383,-151.0,0.00035616,31]
[394198989,1763371867393,-151.0,0.00035616,31]
[394198990,1763371867402,-151.0,0.00035616,31]
[394198991,1763371867411,-151.0,0.00035616,31]
[394198992,1763371867421,-151.0,0.00035616,31]
[394198993,1763371867431,-240.902681,0.00035616,31]
[394198994,1763371867442,-416.78,0.00035799,2]
[394198995,1763371867451,-416.78,0.00035799,2]
[394198996,1763371867461,-416.78,0.00035799,2]
[394198997,1763371867470,-416.78,0.00035799,2]
[394198998,1763371867483,-416.78,0.00035799,2]
[394198999,1763371867500,-415.76,0.00035799,2]
[394199000,1763371867511,-503.79,0.000358,60]
[394199001,1763371867522,-374.58708372,0.00035827,2]
[394199002,1763371867532,-500.0,0.00035881,7]
[394199003,1763371867542,-550.64597,0.00035888,30]
[394199004,1763371867552,-1000.0,0.0003589,2]
[394199005,1763371867561,-3616.0,0.0003589,5]
[394199006,1763371867570,-1961.62,0.0003589,2]
[394199007,1763371867579,-535.0268606,0.00035913,30]
[394199008,1763371867589,-767.20084997,0.00035936,30]
[394199009,1763371867599,-355.21254208,0.00036,4]
[394199010,1763371867608,-231721.36829206,0.00036,2]
[394199011,1763371867617,-10722.81844621,0.00036,2]
[394199012,1763371867627,-342.97,0.00036,14]
[394199013,1763371867636,-1378.45035715,0.00036,120]
[394199014,1763371867645,-340.27483488,0.00036,120]
[394199015,1763371867654,-151.0,0.00036,31]
[394199016,1763371867663,-295.910074,0.00036,31]
[394199017,1763371867673,-151.0,0.00036,31]
[394199018,1763371867682,-245.28028,0.00036,31]
[394199019,1763371867691,-245.28028,0.00036,31]
[394199020,1763371867700,-151.0,0.00036,31]
[394199021,1763371867709,-245.28028,0.00036,31]
[394199022,1763371867718,-245.280281,0.00036,31]
[394199023,1763371867728,-151.0,0.00036,31]
[394199024,1763371867739,-151.0,0.00036,31]
[394199025,1763371867748,-151.0,0.00036,31]
[394199026,1763371867757,-151.0,0.00036,31]
[394199027,1763371867766,-179.664397,0.00036,31]
[394199028,1763371867776,-151.0,0.00036,31]
[394199029,1763371867785,-550.64597,0.00036088,30]
[394199030,1763371867795,-1000.0,0.00036164,2]
[394199031,1763371867804,-1961.62,0.00036164,2]
[394199032,1763371867812,-5000.0,0.00036229,2]
[394199033,1763371867821,-152.0,0.0003623,2]
[394199034,1763371867831,-550.64597,0.00036288,30]
[394199035,1763371867840,-2000.0,0.000363,2]
[394199036,1763371867849,-5000.0,0.00036305,2]
[394199037,1763371867860,-2502.6,0.00036305,2]
[394199038,1763371867870,-152.0,0.00036333,6]
[394199039,1763371867880,-550.28,0.0003635,2]
[394199040,1763371867890,-550.28,0.0003635,2]
[394199041,1763371867899,-550.28,0.0003635,2]
[394199042,1763371867911,-550.28,0.0003635,2]
[394199043,1763371867921,-550.28,0.0003635,2]
[394199044,1763371867934,-975.35,0.0003635,2]
[394199045,1763371867943,-2502.59,0.00036431,2]
[394199046,1763371867954,-1000.0,0.00036438,2]
[394199047,1763371867963,-1961.69822566,0.00036438,2]
[394199048,1763371867972,-550.64597,0.00036488,30]
[394199049,1763371867982,-10179.82,0.00036544,2]
[394199050,1763371867991,-2510.51,0.0003656,2]
[394199051,1763371868000,-2536.65,0.00036588,2]
[394199052,1763371868010,-693.34,0.000366,30]
[394199053,1763371868019,-4802.18,0.000366,2]
[394199054,1763371868029,-215.54799268,0.00036607,16]
[394199055,1763371868040,-150.0,0.0003663,30]
[394199056,1763371868050,-550.64597,0.00036688,30]
[394199057,1763371868060,-500.0,0.00036703,7]
[394199058,1763371868074,-537.87805006,0.00036703,7]
[394199059,1763371868086,-1000.0,0.00036712,2]
[394199060,1763371868095,-25000.0,0.00036783,2]
[394199061,1763371868104,-1589.4923217,0.000368,2]
[394199062,1763371868113,-1835.4865,0.00036888,7]
[394199063,1763371868123,-550.64597,0.00036888,30]
[394199064,1763371868132,-2501.46,0.00036889,2]
[394199065,1763371868142,-212.0,0.0003689,30]
[394199066,1763371868152,-2501.47,0.00036906,2]
[394199067,1763371868161,-1000.0,0.00036986,2]
[394199068,1763371868171,-500.0,0.00036986,15]
[394199069,1763371868181,-500.0,0.00036986,15]
[394199070,1763371868190,-500.0,0.00036986,15]
[394199071,1763371868199,-500.0,0.00036986,15]
[394199072,1763371868209,-209.02281543,0.00036986,15]
[394199073,1763371868218,-245.44697949,0.00036986,15]
[394199074,1763371868227,-163.46836079,0.00037,2]
[394199075,1763371868236,-150.0,0.00037068,2]
[394199076,1763371868246,-150.0,0.00037068,2]
[394199077,1763371868257,-150.0,0.00037068,2]
[394199078,1763371868266,-550.64597,0.00037088,30]
[394199079,1763371868275,-1378.45035715,0.000371,120]
[394199080,1763371868283,-2596.0,0.0003718,30]
[394199081,1763371868293,-1000.0,0.0003726,2]
[394199082,1763371868302,-550.64597,0.00037288,30]
[394199083,1763371868310,-550.64597,0.00037488,30]
[394199084,1763371868318,-500.0,0.00037525,7]
[394199085,1763371868327,-1000.0,0.00037534,2]
[394199086,1763371868336,-1000.0,0.00037546,30]
[394199087,1763371868346,-1024.67363563,0.00037546,30]
[394199088,1763371868355,-1068.24219289,0.00037546,30]
[394199089,1763371868365,-1001.47245376,0.00037546,30]
[394199090,1763371868374,-1003.8137294,0.00037546,30]
[394199091,1763371868384,-1000.54790026,0.00037546,30]
[394199092,1763371868393,-1355.74159634,0.00037546,30]
[394199093,1763371868403,-1003.34767189,0.00037546,30]
[394199094,1763371868412,-1000.00000001,0.00037546,30]
[394199095,1763371868422,-1007.44003484,0.00037546,30]
[394199096,1763371868433,-1377.28371524,0.00037546,30]
[394199097,1763371868444,-153.653404,0.0003763,30]
[394199098,1763371868453,-152.0,0.00037672,7]
[394199099,1763371868463,-550.64597,0.00037688,30]
[394199100,1763371868474,-1000.0,0.00037808,2]
[394199101,1763371868485,-199.53402567,0.0003788,2]
[394199102,1763371868495,-550.64597,0.00037888,30]
[394199103,1763371868504,-49687.47263855,0.0003797,2]
[394199104,1763371868514,-1150.90692921,0.00038,2]
[394199105,1763371868523,-3703.6153263,0.00038,30]
[394199106,1763371868532,-1000.0,0.00038,120]
[394199107,1763371868542,-1051.53261046,0.00038,120]
[394199108,1763371868551,-1000.0,0.00038,120]
[394199109,1763371868561,-375.0,0.00038,15]
[394199110,1763371868571,-109221.66173399,0.00038,120]
[394199111,1763371868581,-2720.47009184,0.00038021,30]
[394199112,1763371868591,-1604.0,0.00038068,2]
[394199113,1763371868600,-705.0,0.00038068,2]
[394199114,1763371868611,-1191.0,0.00038068,2]
[394199115,1763371868620,-907.0,0.00038068,2]
[394199116,1763371868630,-550.64597,0.00038088,30]
[394199117,1763371868640,-1378.45035715,0.000382,120]
[394199118,1763371868650,-478.34,0.00038257,2]
[394199119,1763371868659,-478.34,0.00038257,2]
[394199120,1763371868669,-475.35,0.00038257,2]
[394199121,1763371868678,-172.22,0.00038268,2]
[394199122,1763371868687,-550.64597,0.00038288,30]
[394199123,1763371868696,-500.0,0.00038347,7]
[394199124,1763371868706,-154.0,0.0003835,2]
[394199125,1763371868716,-447.41347543,0.00038356,7]
[394199126,1763371868726,-334.50975681,0.00038356,120]
[394199127,1763371868735,-200.0,0.0003844,6]
[394199128,1763371868745,-550.64597,0.00038488,30]
[394199129,1763371868755,-200.0,0.00038506,6]
[394199130,1763371868764,-200.0,0.0003857,6]
[394199131,1763371868775,-374.58708372,0.00038583,2]
[394199132,1763371868784,-289.0686738,0.000386,2]
[394199133,1763371868794,-150.0,0.0003863,60]
[394199134,1763371868803,-200.0,0.0003867,6]
[394199135,1763371868812,-550.64597,0.00038688,30]
[394199136,1763371868821,-5560.0,0.000387,117]
[394199137,1763371868831,-200.0,0.00038729,6]
[394199138,1763371868840,-3111.63403869,0.0003889,30]
[394199139,1763371868849,-212.0,0.0003891,30]
[394199140,1763371868858,-50000.0,0.00039,39]
[394199141,1763371868868,-2670.7512697,0.00039,2]
[394199142,1763371868879,-655.823932,0.00039,120]
[394199143,1763371868892,-5000.0,0.00039,15]
[394199144,1763371868903,-44396.42588777,0.00039,2]
[394199145,1763371868912,-1576.18220457,0.00039,120]
[394199146,1763371868921,-1000.0,0.00039,20]
[394199147,1763371868931,-1000.0,0.00039,20]
[394199148,1763371868940,-7806.06155956,0.00039,30]
[394199149,1763371868950,-693.34,0.00039,30]
[394199150,1763371868959,-1256.93459427,0.00039,120]
[394199151,1763371868969,-210.80767228,0.00039,2]
[394199152,1763371868978,-3029.66,0.00039,14]
[394199153,1763371868987,-152.0,0.00039012,8]
[394199154,1763371868996,-550.64597,0.00039088,30]
[394199155,1763371869006,-500.0,0.00039169,7]
[394199156,1763371869015,-478.34,0.00039216,2]
[394199157,1763371869025,-478.34,0.00039216,2]
[394199158,1763371869034,-478.34,0.00039216,2]
[394199159,1763371869043,-478.34,0.00039216,2]
[394199160,1763371869053,-478.34,0.00039216,2]
[394199161,1763371869062,-478.34,0.00039216,2]
[394199162,1763371869071,-478.34,0.00039216,2]
[394199163,1763371869081,-478.34,0.00039216,2]
[394199164,1763371869090,-478.34,0.00039216,2]
[394199165,1763371869100,-478.34,0.00039216,2]
[394199166,1763371869110,-478.34,0.00039216,2]
[394199167,1763371869123,-478.34,0.00039216,2]
[394199168,1763371869133,-478.34,0.00039216,2]
[394199169,1763371869142,-478.34,0.00039216,2]
[394199170,1763371869152,-478.34,0.00039216,2]
[394199171,1763371869161,-478.34,0.00039216,2]
[394199172,1763371869171,-197.65,0.00039216,2]
[394199173,1763371869181,-550.64597,0.00039288,30]
[394199174,1763371869191,-944.86,0.00039366,30]
[394199175,1763371869201,-377.49,0.00039384,120]
[394199176,1763371869210,-150.0,0.00039399,120]
[394199177,1763371869220,-1378.45035715,0.000394,120]
[394199178,1763371869229,-157.51443114,0.00039451,7]
[394199179,1763371869239,-1064.5,0.00039459,2]
[394199180,1763371869249,-100000.0,0.0003946,120]
[394199181,1763371869258,-550.64597,0.00039488,30]
[394199182,1763371869268,-56293.42176758,0.0003953,30]
[394199183,1763371869278,-218.36312478,0.000396,120]
[394199184,1763371869287,-150.0,0.0003963,60]
[394199185,1763371869297,-478.6,0.00039654,2]
[394199186,1763371869306,-150.0,0.00039686,120]
[394199187,1763371869316,-550.64597,0.00039688,30]
[394199188,1763371869325,-150.0,0.00039751,120]
[394199189,1763371869336,-19468.94310378,0.000398,7]
[394199190,1763371869345,-150.0,0.00039814,120]
[394199191,1763371869355,-537.465032,0.0003988,120]
[394199192,1763371869366,-3857.57420961,0.0003988,30]
[394199193,1763371869376,-1314276.1628088,0.0003988,7]
[394199194,1763371869386,-550.64597,0.00039888,30]
[394199195,1763371869395,-362.7506045,0.0003989,120]
[394199196,1763371869405,-150.0,0.00039901,2]
[394199197,1763371869415,-300.0,0.00039901,2]
[394199198,1763371869424,-150.0,0.00039901,2]
[394199199,1763371869435,-150.0,0.00039901,2]
[394199200,1763371869446,-150.0,0.00039901,2]
[394199201,1763371869456,-150.0,0.00039901,2]
[394199202,1763371869642,-177.35,0.00039907,2]
[394199203,1763371869652,-177.35,0.00039907,2]
[394199204,1763371869662,-177.35,0.00039907,2]
[394199205,1763371869671,-177.35,0.00039907,2]
[394199206,1763371869681,-187.03,0.00039907,2]
[394199207,1763371869690,-177.35,0.00039907,2]
[394199208,1763371869699,-177.35,0.00039907,2]
[394199209,1763371869709,-500.0,0.00039991,7]
[394199210,1763371869718,-50000.0,0.0004,40]
[394199211,1763371869727,-854.23,0.0004,7]
[394199212,1763371869737,-245.9,0.0004,30]
[394199213,1763371869747,-16837.17,0.0004,90]
[394199214,1763371869756,-385.20318379,0.0004,2]
[394199215,1763371869766,-215.88843568,0.0004,2]
[394199216,1763371869775,-1078.76272092,0.0004,120]
[394199217,1763371869789,-310.64488715,0.0004,2]
[394199218,1763371869799,-20000.0,0.0004,3]
[394199219,1763371869810,-1000.0,0.0004,120]
[394199220,1763371869820,-3312.89112923,0.0004,5]
[394199221,1763371869830,-25105.15192069,0.0004,2]
[394199222,1763371869841,-363.13827113,0.0004,120]
[394199223,1763371869852,-737.75771775,0.0004,30]
[394199224,1763371869863,-1000.0,0.0004,120]
[394199225,1763371869874,-1026.16616422,0.0004,120]
[394199226,1763371869884,-214.15594501,0.0004,30]
[394199227,1763371869894,-221.0,0.0004,120]
[394199228,1763371869904,-4000.46365588,0.0004,2]
[394199229,1763371869915,-310.42977078,0.0004,120]
[394199230,1763371869924,-7382.0,0.0004,120]
[394199231,1763371869934,-2758.88189847,0.0004,30]
[394199232,1763371869945,-342.97,0.0004,14]
[394199233,1763371869955,-1123.0,0.0004,30]
[394199234,1763371869964,-860.62187753,0.0004,120]
[394199235,1763371869973,-186.23907567,0.0004,10]
[394199236,1763371869983,-209.0,0.0004,30]
[394199237,1763371869993,-150.0,0.0004,60]
[394199238,1763371870003,-24792.46986795,0.0004,120]
[394199239,1763371870012,-216.71,0.0004,120]
[394199240,1763371870022,-274.66,0.0004,120]
[394199241,1763371870031,-168.18,0.0004,120]
[394199242,1763371870040,-756.19,0.0004,120]
[394199243,1763371870050,-631.44,0.0004,120]
[394199244,1763371870059,-233.75925743,0.0004,2]
[394199245,1763371870069,-2000.0,0.0004,2]
[394199246,1763371870078,-12499.99,0.0004,120]
[394199247,1763371870088,-1043.38,0.0004,120]
[394199248,1763371870097,-215.87,0.0004,120]
[394199249,1763371870107,-232.06,0.0004,120]
[394199250,1763371870116,-625.92,0.0004,120]
[394199251,1763371870126,-596.42,0.0004,120]
[394199252,1763371870135,-940.27,0.0004,120]
[394199253,1763371870144,-550.64597,0.00040088,30]
[394199254,1763371870154,-1376.0,0.00040223,30]
[394199255,1763371870163,-550.64597,0.00040288,30]
[394199256,1763371870173,-152.0,0.00040351,9]
[394199257,1763371870183,-684.8,0.000404,120]
[394199258,1763371870193,-423.48,0.000404,120]
[394199259,1763371870203,-1117435.07840671,0.000404,30]
[394199260,1763371870212,-299.28160446,0.00040467,30]
[394199261,1763371870222,-550.64597,0.00040488,30]
[394199262,1763371870231,-1378.45035715,0.000405,120]
[394199263,1763371870243,-150.0,0.0004063,60]
[394199264,1763371870252,-1376.0,0.00040637,30]
[394199265,1763371870262,-300.0,0.00040653,102]
[394199266,1763371870271,-550.64597,0.00040688,30]
[394199267,1763371870282,-235.595401,0.00040707,7]
[394199268,1763371870291,-2887.461462,0.00040707,7]
[394199269,1763371870301,-1462.902526,0.00040707,7]
[394199270,1763371870311,-549.76958596,0.00040707,13]
[394199271,1763371870320,-549.76958582,0.00040707,13]
[394199272,1763371870330,-549.76958582,0.00040707,13]
[394199273,1763371870339,-549.76958582,0.00040707,13]
[394199274,1763371870348,-549.76958582,0.00040707,13]
[394199275,1763371870358,-549.76958582,0.00040707,13]
[394199276,1763371870367,-549.76958582,0.00040707,13]
[394199277,1763371870377,-549.76958582,0.00040707,13]
[394199278,1763371870387,-549.76958582,0.00040707,13]
[394199279,1763371870396,-549.76958582,0.00040707,13]
[394199280,1763371870405,-549.76958582,0.00040707,13]
[394199281,1763371870414,-549.76958582,0.00040707,13]
[394199282,1763371870424,-549.76958582,0.00040707,13]
[394199283,1763371870437,-354.55,0.00040723,2]
[394199284,1763371870447,-338.79,0.00040723,2]
[394199285,1763371870456,-300.5,0.00040723,2]
[394199286,1763371870466,-300.0,0.00040723,2]
[394199287,1763371870475,-300.0,0.00040723,2]
[394199288,1763371870485,-300.0,0.00040723,2]
[394199289,1763371870495,-300.0,0.00040723,2]
[394199290,1763371870505,-177.35,0.00040723,2]
[394199291,1763371870515,-177.35,0.00040723,2]
[394199292,1763371870524,-177.35,0.00040723,2]
[394199293,1763371870534,-177.35,0.00040723,2]
[394199294,1763371870543,-177.35,0.00040723,2]
[394199295,1763371870553,-356.7,0.00040723,2]
[394199296,1763371870562,-177.32,0.00040723,2]
[394199297,1763371870572,-177.35,0.00040729,2]
[394199298,1763371870582,-354.4,0.00040729,2]
[394199299,1763371870591,-354.64,0.00040729,2]
[394199300,1763371870601,-177.35,0.00040729,2]
[394199301,1763371870611,-177.35,0.00040729,2]
[394199302,1763371870621,-177.35,0.00040729,2]
[394199303,1763371870631,-177.35,0.00040729,2]
[394199304,1763371870640,-177.35,0.00040729,2]
[394199305,1763371870650,-177.35,0.00040729,2]
[394199306,1763371870659,-177.35,0.00040729,2]
[394199307,1763371870668,-177.35,0.00040729,2]
[394199308,1763371870677,-354.4,0.00040729,2]
[394199309,1763371870687,-354.64,0.00040729,2]
[394199310,1763371870696,-177.35,0.00040729,2]
[394199311,1763371870706,-177.35,0.00040729,2]
[394199312,1763371870715,-177.35,0.00040729,2]
[394199313,1763371870725,-500.0,0.00040813,7]
[394199314,1763371870734,-2500.0,0.00040825,14]
[394199315,1763371870744,-150.0,0.00040858,120]
[394199316,1763371870754,-550.64597,0.00040888,30]
[394199317,1763371870763,-212.0,0.0004093,30]
[394199318,1763371870773,-50000.0,0.00041,41]
[394199319,1763371870783,-24079.12255124,0.00041,2]
[394199320,1763371870792,-236.20775147,0.00041,120]
[394199321,1763371870801,-422.9768603,0.00041,30]
[394199322,1763371870811,-579.66116784,0.00041,30]
[394199323,1763371870821,-1013.0,0.00041,120]
[394199324,1763371870830,-1195.08,0.00041,30]
[394199325,1763371870840,-456.10275247,0.00041,30]
[394199326,1763371870850,-150.0,0.00041,60]
[394199327,1763371870859,-495.1435431,0.00041,120]
[394199328,1763371870869,-189.04225863,0.00041034,120]
[394199329,1763371870879,-1376.0,0.00041052,30]
[394199330,1763371870888,-1604.0,0.00041068,2]
[394199331,1763371870899,-705.0,0.00041068,2]
[394199332,1763371870909,-1191.0,0.00041068,2]
[394199333,1763371870918,-907.0,0.00041068,2]
[394199334,1763371870928,-550.64597,0.00041088,30]
[394199335,1763371870937,-249.56,0.00041096,120]
[394199336,1763371870947,-154.38,0.00041096,2]
[394199337,1763371870956,-236.037905,0.00041096,45]
[394199338,1763371870966,-236.037905,0.00041096,45]
[394199339,1763371870975,-236.037905,0.00041096,45]
[394199340,1763371870985,-236.037905,0.00041096,45]
[394199341,1763371870994,-236.037905,0.00041096,45]
[394199342,1763371871004,-236.037905,0.00041096,45]
[394199343,1763371871012,-236.037905,0.00041096,45]
[394199344,1763371871022,-236.037905,0.00041096,45]
[394199345,1763371871031,-236.037905,0.00041096,45]
[394199346,1763371871040,-236.037905,0.00041096,45]
[394199347,1763371871049,-236.037905,0.00041096,45]
[394199348,1763371871058,-236.037905,0.00041096,45]
[394199349,1763371871067,-236.037905,0.00041096,45]
[394199350,1763371871076,-236.037905,0.00041096,45]
[394199351,1763371871086,-236.037905,0.00041096,45]
[394199352,1763371871096,-236.037905,0.00041096,45]
[394199353,1763371871106,-236.037905,0.00041096,45]
[394199354,1763371871115,-236.037905,0.00041096,45]
[394199355,1763371871125,-236.037905,0.00041096,45]
[394199356,1763371871135,-236.037896,0.00041096,45]
[394199357,1763371871144,-500.0,0.00041096,2]
[394199358,1763371871154,-500.0,0.00041096,2]
[394199359,1763371871163,-207.54354122,0.00041096,2]
[394199360,1763371871172,-150.0,0.00041096,2]
[394199361,1763371871182,-150.0,0.00041096,2]
[394199362,1763371871198,-150.0,0.00041096,2]
[394199363,1763371871217,-150.0,0.00041096,2]
[394199364,1763371871229,-150.0,0.00041096,2]
[394199365,1763371871244,-160.84846431,0.00041096,2]
[394199366,1763371871259,-500.0,0.00041096,2]
[394199367,1763371871275,-500.0,0.00041096,2]
[394199368,1763371871289,-500.0,0.00041096,2]
[394199369,1763371871301,-500.0,0.00041096,2]
[394199370,1763371871317,-500.0,0.00041096,2]
[394199371,1763371871332,-500.0,0.00041096,2]
[394199372,1763371871346,-361.71219261,0.00041096,2]
[394199373,1763371871362,-500.0,0.00041096,2]
[394199374,1763371871379,-500.0,0.00041096,2]
[394199375,1763371871395,-463.49542288,0.00041096,2]
[394199376,1763371871411,-150.0,0.00041096,2]
[394199377,1763371871426,-151.98714203,0.00041096,2]
[394199378,1763371871443,-151.04410562,0.00041096,2]
[394199379,1763371871460,-150.0,0.00041096,2]
[394199380,1763371871475,-150.0,0.00041096,2]
[394199381,1763371871490,-150.0,0.00041096,2]
[394199382,1763371871500,-150.0,0.00041096,2]
[394199383,1763371871515,-150.0,0.00041096,2]
[394199384,1763371871531,-202.30064336,0.00041096,2]
[394199385,1763371871543,-150.90639333,0.00041096,2]
[394199386,1763371871555,-500.0,0.00041096,2]
[394199387,1763371871570,-507.46939243,0.00041096,2]
[394199388,1763371871583,-500.0,0.00041096,2]
[394199389,1763371871596,-576.87546424,0.00041096,2]
[394199390,1763371871610,-165.29538188,0.00041096,2]
[394199391,1763371871621,-151.95450501,0.00041096,2]
[394199392,1763371871633,-150.0,0.00041096,2]
[394199393,1763371871647,-150.0,0.00041096,2]
[394199394,1763371871660,-198.94124935,0.00041096,2]
[394199395,1763371871672,-150.0,0.00041096,2]
[394199396,1763371871685,-150.0,0.00041096,2]
[394199397,1763371871698,-243.22082757,0.00041096,2]
[394199398,1763371871710,-161.28819689,0.00041096,2]
[394199399,1763371871724,-500.0,0.00041096,2]
[394199400,1763371871736,-500.0,0.00041096,2]
[394199401,1763371871749,-500.0,0.00041096,2]
[394199402,1763371871761,-500.0,0.00041096,2]
[394199403,1763371871774,-500.0,0.00041096,2]
[394199404,1763371871786,-423.93695428,0.00041096,2]
[394199405,1763371871799,-500.0,0.00041096,2]
[394199406,1763371871811,-500.0,0.00041096,2]
[394199407,1763371871824,-151.69512455,0.00041096,2]
[394199408,1763371871836,-150.0,0.00041096,2]
[394199409,1763371871848,-150.0,0.00041096,2]
[394199410,1763371871861,-150.0,0.00041096,2]
[394199411,1763371871874,-150.0,0.00041096,2]
[394199412,1763371871887,-201.24561442,0.00041096,2]
[394199413,1763371871899,-500.0,0.00041096,2]
[394199414,1763371871912,-500.0,0.00041096,2]
[394199415,1763371871926,-304.33753103,0.00041096,2]
[394199416,1763371871940,-150.0,0.00041096,2]
[394199417,1763371871952,-203.05300063,0.00041096,2]
[394199418,1763371871964,-500.0,0.00041096,2]
[394199419,1763371871976,-500.0,0.00041096,2]
[394199420,1763371871989,-500.0,0.00041096,2]
[394199421,1763371872001,-500.0,0.00041096,2]
[394199422,1763371872014,-500.0,0.00041096,2]
[394199423,1763371872027,-500.0,0.00041096,2]
[394199424,1763371872040,-500.0,0.00041096,2]
[394199425,1763371872052,-427.10834346,0.00041096,2]
[394199426,1763371872065,-300.0,0.00041096,30]
[394199427,1763371872079,-300.0,0.00041096,30]
[394199428,1763371872092,-300.0,0.00041096,30]
[394199429,1763371872105,-300.0,0.00041096,30]
[394199430,1763371872118,-300.0,0.00041096,30]